[Event "January 9 Early 2024"]
[Site "https://www.chess.com"]
[Date "2024.01.11"]
[Round "6"]
[White "Alexanian, Nelli"]
[Black "Piscicelli, Daniel Orlando"]
[Result "1-0"]
[Board "25"]
[TimeControl "180+1"]
[WhiteFideId "4170539"]
[BlackFideId "101958"]
[WhiteElo "1960"]
[BlackElo "2224"]
[WhiteTeam "TUR"]
[BlackTeam "ARG"]
[WhiteClock "0:01:47"]
[BlackClock "0:01:02"]

1. d4 {[%clk 0:02:59]}  Nf6 {[%clk 0:02:55]} 2. c4 {[%clk 0:02:57]}  g6 {[%clk 0:02:55]} 3. h4 {[%clk 0:02:54]}  Bg7 {[%clk 0:02:53]} 4. Nc3 {[%clk 0:02:49]}  d5 {[%clk 0:02:49]} 5. h5 {[%clk 0:02:46]}  Nxh5 {[%clk 0:02:37]} 6. cxd5 {[%clk 0:02:36]}  Nf6 {[%clk 0:02:34]} 7. e4 {[%clk 0:02:34]}  c6 {[%clk 0:02:32]} 8. Bc4 {[%clk 0:02:12]}  Bd7 {[%clk 0:02:10]} 9. Bh6 {[%clk 0:02:04]}  Rg8 {[%clk 0:01:53]} 10. Nf3 {[%clk 0:01:57]}  cxd5 {[%clk 0:01:24]} 11. Nxd5 {[%clk 0:01:52]}  Qa5+ {[%clk 0:01:11]} 12. b4 {[%clk 0:01:50]}  Qc7 {[%clk 0:01:02]} 13. Nxc7+ {[%clk 0:01:47]} 1-0

[Event "January 9 Early 2024"]
[Site "https://www.chess.com"]
[Date "2024.01.11"]
[Round "6"]
[White "Bluebaum, Matthias"]
[Black "Lu, Shanglei"]
[Result "1/2-1/2"]
[Board "31"]
[TimeControl "180+1"]
[WhiteFideId "24651516"]
[BlackFideId "8603332"]
[WhiteElo "3091"]
[BlackElo "3029"]
[WhiteTeam "GER"]
[BlackTeam "CHN"]
[WhiteClock "0:01:18"]
[BlackClock "0:01:16"]

1. d4 {[%clk 0:03:00]}  Nf6 {[%clk 0:02:59]} 2. c4 {[%clk 0:03:01]}  e6 {[%clk 0:03:00]} 3. Nc3 {[%clk 0:03:02]}  Bb4 {[%clk 0:02:59]} 4. e3 {[%clk 0:03:02]}  O-O {[%clk 0:02:59]} 5. Bd2 {[%clk 0:03:03]}  d5 {[%clk 0:02:55]} 6. Nf3 {[%clk 0:03:03]}  b6 {[%clk 0:02:54]} 7. cxd5 {[%clk 0:03:04]}  exd5 {[%clk 0:02:54]} 8. Rc1 {[%clk 0:03:04]}  a6 {[%clk 0:02:52]} 9. Bd3 {[%clk 0:03:04]}  Re8 {[%clk 0:02:52]} 10. Ne5 {[%clk 0:02:59]}  Bd6 {[%clk 0:02:50]} 11. f4 {[%clk 0:02:59]}  c5 {[%clk 0:02:49]} 12. O-O {[%clk 0:03:00]}  Bb7 {[%clk 0:02:46]} 13. Be1 {[%clk 0:03:00]}  Nc6 {[%clk 0:02:42]} 14. Bh4 {[%clk 0:03:00]}  g6 {[%clk 0:02:12]} 15. Nxd5 {[%clk 0:02:05]}  Bxe5 {[%clk 0:02:11]} 16. fxe5 {[%clk 0:02:06]}  Qxd5 {[%clk 0:02:09]} 17. Bc4 {[%clk 0:02:07]}  Qe4 {[%clk 0:02:02]} 18. Bxf6 {[%clk 0:01:34]}  Nxe5 {[%clk 0:01:55]} 19. Qd2 {[%clk 0:01:15]}  Nxc4 {[%clk 0:01:41]} 20. Rxc4 {[%clk 0:01:16]}  Qxe3+ {[%clk 0:01:18]} 21. Qxe3 {[%clk 0:01:17]}  Rxe3 {[%clk 0:01:19]} 22. dxc5 {[%clk 0:01:17]}  Re2 {[%clk 0:01:19]} 23. Rf2 {[%clk 0:01:16]}  Re1+ {[%clk 0:01:17]} 24. Rf1 {[%clk 0:01:17]}  Re2 {[%clk 0:01:15]} 25. Rf2 {[%clk 0:01:17]}  Re1+ {[%clk 0:01:15]} 26. Rf1 {[%clk 0:01:18]}  Re2 {[%clk 0:01:16]} 1/2-1/2

[Event "January 9 Early 2024"]
[Site "https://www.chess.com"]
[Date "2024.01.11"]
[Round "6"]
[White "Goncalves, Samuel Jesus P"]
[Black "Onufrienko, Vladislav"]
[Result "0-1"]
[Board "35"]
[TimeControl "180+1"]
[WhiteFideId "1945130"]
[BlackFideId "13804332"]
[WhiteElo "2422"]
[BlackElo "2599"]
[WhiteTeam "POR"]
[BlackTeam "KGZ"]
[WhiteClock "0:01:06"]
[BlackClock "0:01:35"]

1. e4 {[%clk 0:03:00]}  Nf6 {[%clk 0:03:00]} 2. e5 {[%clk 0:02:59]}  Nd5 {[%clk 0:03:01]} 3. d4 {[%clk 0:03:00]}  d6 {[%clk 0:03:01]} 4. c4 {[%clk 0:02:56]}  Nb6 {[%clk 0:03:01]} 5. exd6 {[%clk 0:02:47]}  exd6 {[%clk 0:03:02]} 6. Nf3 {[%clk 0:02:47]}  Be7 {[%clk 0:03:02]} 7. Bd3 {[%clk 0:02:42]}  O-O {[%clk 0:03:03]} 8. O-O {[%clk 0:02:43]}  Bg4 {[%clk 0:03:03]} 9. h3 {[%clk 0:02:42]}  Bh5 {[%clk 0:03:02]} 10. Nc3 {[%clk 0:02:39]}  Nc6 {[%clk 0:03:02]} 11. Be3 {[%clk 0:02:37]}  Bf6 {[%clk 0:03:01]} 12. c5 {[%clk 0:02:13]}  dxc5 {[%clk 0:02:56]} 13. dxc5 {[%clk 0:02:13]}  Bxf3 {[%clk 0:02:57]} 14. Bxh7+ {[%clk 0:01:58]}  Kxh7 {[%clk 0:02:55]} 15. Qxd8 {[%clk 0:01:58]}  Raxd8 {[%clk 0:02:47]} 16. cxb6 {[%clk 0:01:58]}  Bh5 {[%clk 0:02:42]} 17. bxa7 {[%clk 0:01:54]}  b6 {[%clk 0:02:39]} 18. Nb5 {[%clk 0:01:54]}  Be2 {[%clk 0:02:39]} 19. Nxc7 {[%clk 0:01:48]}  Bxf1 {[%clk 0:02:38]} 20. Rxf1 {[%clk 0:01:47]}  Nxa7 {[%clk 0:02:38]} 21. Bxb6 {[%clk 0:01:46]}  Nc8 {[%clk 0:02:38]} 22. Ba5 {[%clk 0:01:46]}  Rd7 {[%clk 0:02:34]} 23. b4 {[%clk 0:01:46]}  Bd8 {[%clk 0:02:32]} 24. Rc1 {[%clk 0:01:43]}  Bxc7 {[%clk 0:02:32]} 25. Bxc7 {[%clk 0:01:42]}  Re8 {[%clk 0:02:31]} 26. b5 {[%clk 0:01:41]}  Ne7 {[%clk 0:02:27]} 27. a4 {[%clk 0:01:33]}  Nd5 {[%clk 0:01:53]} 28. Bg3 {[%clk 0:01:33]}  Ra8 {[%clk 0:01:51]} 29. Ra1 {[%clk 0:01:18]}  Nc3 {[%clk 0:01:50]} 30. b6 {[%clk 0:01:15]}  Rxa4 {[%clk 0:01:41]} 31. Re1 {[%clk 0:01:10]}  Rb4 {[%clk 0:01:36]} 32. Bc7 {[%clk 0:01:10]}  Nd5 {[%clk 0:01:36]} 33. Rd1 {[%clk 0:01:06]}  Nxb6 {[%clk 0:01:35]} 0-1

[Event "January 9 Early 2024"]
[Site "https://www.chess.com"]
[Date "2024.01.11"]
[Round "6"]
[White "Carnicelli, Valerio"]
[Black "Materia, Marco"]
[Result "0-1"]
[Board "39"]
[TimeControl "180+1"]
[WhiteFideId "856185"]
[BlackFideId "45150451"]
[WhiteElo "2579"]
[BlackElo "2817"]
[WhiteTeam "ITA"]
[BlackTeam "FRA"]
[WhiteClock "0:00:29"]
[BlackClock "0:01:35"]

1. b3 {[%clk 0:03:00]}  d5 {[%clk 0:02:59]} 2. Bb2 {[%clk 0:03:01]}  Nc6 {[%clk 0:02:59]} 3. e3 {[%clk 0:03:01]}  e5 {[%clk 0:02:59]} 4. Bb5 {[%clk 0:03:01]}  Bd6 {[%clk 0:02:59]} 5. c4 {[%clk 0:02:59]}  Ne7 {[%clk 0:02:56]} 6. c5 {[%clk 0:02:56]}  Bxc5 {[%clk 0:02:56]} 7. Bxe5 {[%clk 0:02:56]}  O-O {[%clk 0:02:56]} 8. Bb2 {[%clk 0:02:55]}  d4 {[%clk 0:02:55]} 9. Nf3 {[%clk 0:02:49]}  Bg4 {[%clk 0:02:51]} 10. h3 {[%clk 0:02:43]}  Bh5 {[%clk 0:02:51]} 11. O-O {[%clk 0:02:29]}  a6 {[%clk 0:02:44]} 12. Bxc6 {[%clk 0:02:02]}  Nxc6 {[%clk 0:02:44]} 13. e4 {[%clk 0:01:47]}  Qd7 {[%clk 0:02:19]} 14. d3 {[%clk 0:01:40]}  f5 {[%clk 0:02:16]} 15. e5 {[%clk 0:01:37]}  Bxf3 {[%clk 0:02:15]} 16. Qxf3 {[%clk 0:01:37]}  Nxe5 {[%clk 0:02:16]} 17. Qd1 {[%clk 0:01:27]}  f4 {[%clk 0:02:15]} 18. f3 {[%clk 0:01:26]}  Rae8 {[%clk 0:02:13]} 19. b4 {[%clk 0:01:19]}  Ba7 {[%clk 0:02:11]} 20. Nd2 {[%clk 0:01:19]}  Kh8 {[%clk 0:01:59]} 21. Ne4 {[%clk 0:01:17]}  Qb5 {[%clk 0:01:58]} 22. Qb3 {[%clk 0:00:57]}  Qxd3 {[%clk 0:01:55]} 23. Rfd1 {[%clk 0:00:56]}  Qxb3 {[%clk 0:01:50]} 24. axb3 {[%clk 0:00:57]}  Nc6 {[%clk 0:01:46]} 25. Kf1 {[%clk 0:00:43]}  Rf5 {[%clk 0:01:45]} 26. Ba3 {[%clk 0:00:37]}  Rb5 {[%clk 0:01:43]} 27. Rac1 {[%clk 0:00:37]}  Bb6 {[%clk 0:01:40]} 28. Nd2 {[%clk 0:00:32]}  Nxb4 {[%clk 0:01:38]} 29. Nc4 {[%clk 0:00:30]}  Nd5 {[%clk 0:01:37]} 30. Re1 {[%clk 0:00:30]}  Ne3+ {[%clk 0:01:36]} 31. Kf2 {[%clk 0:00:29]}  Rxb3 {[%clk 0:01:35]} 0-1

[Event "January 9 Early 2024"]
[Site "https://www.chess.com"]
[Date "2024.01.11"]
[Round "6"]
[White "Koshulyan, Egor A."]
[Black "Rosenberg, Evan S"]
[Result "1-0"]
[Board "40"]
[TimeControl "180+1"]
[WhiteFideId "24237000"]
[BlackFideId "2019299"]
[WhiteElo "2675"]
[BlackElo "2393"]
[WhiteTeam "RUS"]
[BlackTeam "USA"]
[WhiteClock "0:00:55"]
[BlackClock "0:01:10"]

1. e4 {[%clk 0:02:55]}  e6 {[%clk 0:02:57]} 2. d4 {[%clk 0:02:55]}  d5 {[%clk 0:02:58]} 3. e5 {[%clk 0:02:55]}  c5 {[%clk 0:02:58]} 4. c3 {[%clk 0:02:55]}  Nc6 {[%clk 0:02:59]} 5. Nf3 {[%clk 0:02:55]}  Bd7 {[%clk 0:02:59]} 6. Na3 {[%clk 0:02:56]}  Nge7 {[%clk 0:02:57]} 7. Nc2 {[%clk 0:02:56]}  cxd4 {[%clk 0:02:54]} 8. cxd4 {[%clk 0:02:57]}  Nf5 {[%clk 0:02:54]} 9. Bd3 {[%clk 0:02:57]}  Be7 {[%clk 0:02:54]} 10. O-O {[%clk 0:02:57]}  O-O {[%clk 0:02:54]} 11. Rb1 {[%clk 0:02:27]}  f6 {[%clk 0:02:53]} 12. Bxf5 {[%clk 0:02:20]}  exf5 {[%clk 0:02:53]} 13. exf6 {[%clk 0:02:20]}  Bxf6 {[%clk 0:02:53]} 14. Bf4 {[%clk 0:02:02]}  Be8 {[%clk 0:02:51]} 15. Ne3 {[%clk 0:02:00]}  Bh5 {[%clk 0:02:41]} 16. Nxf5 {[%clk 0:01:51]}  Bxd4 {[%clk 0:02:26]} 17. N5xd4 {[%clk 0:01:48]}  Nxd4 {[%clk 0:02:15]} 18. Qxd4 {[%clk 0:01:47]}  Bxf3 {[%clk 0:02:15]} 19. gxf3 {[%clk 0:01:47]}  Qh4 {[%clk 0:02:05]} 20. Qxd5+ {[%clk 0:01:42]}  Kh8 {[%clk 0:02:05]} 21. Bg3 {[%clk 0:01:42]}  Qe7 {[%clk 0:01:56]} 22. Rfe1 {[%clk 0:01:32]}  Qb4 {[%clk 0:01:28]} 23. a3 {[%clk 0:01:31]}  Qb6 {[%clk 0:01:27]} 24. b4 {[%clk 0:01:25]}  Rad8 {[%clk 0:01:26]} 25. Qe4 {[%clk 0:01:24]}  h6 {[%clk 0:01:21]} 26. Kg2 {[%clk 0:01:23]}  Rd4 {[%clk 0:01:19]} 27. Qe3 {[%clk 0:01:19]}  Qf6 {[%clk 0:01:17]} 28. Rbd1 {[%clk 0:01:13]}  Rc4 {[%clk 0:01:14]} 29. Kg1 {[%clk 0:01:06]}  Rc3 {[%clk 0:01:12]} 30. Rd3 {[%clk 0:01:01]}  Rc2 {[%clk 0:01:11]} 31. Rd6 {[%clk 0:00:57]}  Qb2 {[%clk 0:01:10]} 32. Be5 {[%clk 0:00:55]} 1-0

[Event "January 9 Early 2024"]
[Site "https://www.chess.com"]
[Date "2024.01.11"]
[Round "6"]
[White "Dahlgren, James Allen"]
[Black "Devaev, Alexander"]
[Result "0-1"]
[Board "45"]
[TimeControl "180+1"]
[WhiteFideId "22256873"]
[BlackFideId "4169395"]
[WhiteElo "2096"]
[BlackElo "2500"]
[WhiteTeam "ESP"]
[BlackTeam "RUS"]
[WhiteClock "0:00:16"]
[BlackClock "0:02:00"]

1. e4 {[%clk 0:02:57]}  c6 {[%clk 0:03:00]} 2. d4 {[%clk 0:02:55]}  d5 {[%clk 0:03:01]} 3. f3 {[%clk 0:02:56]}  dxe4 {[%clk 0:03:00]} 4. fxe4 {[%clk 0:02:57]}  e5 {[%clk 0:03:00]} 5. dxe5 {[%clk 0:02:52]}  Qxd1+ {[%clk 0:02:59]} 6. Kxd1 {[%clk 0:02:52]}  Bg4+ {[%clk 0:02:53]} 7. Nf3 {[%clk 0:02:51]}  Nd7 {[%clk 0:02:53]} 8. Bf4 {[%clk 0:02:50]}  Ne7 {[%clk 0:02:54]} 9. Be2 {[%clk 0:02:44]}  Ng6 {[%clk 0:02:54]} 10. g3 {[%clk 0:02:44]}  Bxf3 {[%clk 0:02:50]} 11. Bxf3 {[%clk 0:02:45]}  Ngxe5 {[%clk 0:02:50]} 12. Ke2 {[%clk 0:02:43]}  Nxf3 {[%clk 0:02:42]} 13. Kxf3 {[%clk 0:02:44]}  O-O-O {[%clk 0:02:42]} 14. Nc3 {[%clk 0:02:44]}  Bb4 {[%clk 0:02:42]} 15. Rad1 {[%clk 0:02:41]}  Bxc3 {[%clk 0:02:38]} 16. bxc3 {[%clk 0:02:42]}  Rhe8 {[%clk 0:02:37]} 17. Rhe1 {[%clk 0:02:37]}  Nc5 {[%clk 0:02:32]} 18. Rxd8+ {[%clk 0:02:34]}  Rxd8 {[%clk 0:02:31]} 19. e5 {[%clk 0:02:30]}  Ne6 {[%clk 0:02:31]} 20. h4 {[%clk 0:02:25]}  Rd5 {[%clk 0:02:30]} 21. Re2 {[%clk 0:02:19]}  Rc5 {[%clk 0:02:29]} 22. Bd2 {[%clk 0:02:15]}  Ra5 {[%clk 0:02:28]} 23. Ke4 {[%clk 0:02:08]}  Kd7 {[%clk 0:02:27]} 24. Rf2 {[%clk 0:01:47]}  Ke8 {[%clk 0:02:26]} 25. h5 {[%clk 0:01:31]}  Rxa2 {[%clk 0:02:23]} 26. h6 {[%clk 0:01:31]}  g6 {[%clk 0:02:23]} 27. Be3 {[%clk 0:01:22]}  a5 {[%clk 0:02:21]} 28. c4 {[%clk 0:01:08]}  Ra4 {[%clk 0:02:17]} 29. Kd3 {[%clk 0:01:03]}  Ra3+ {[%clk 0:02:18]} 30. c3 {[%clk 0:00:53]}  b5 {[%clk 0:02:06]} 31. cxb5 {[%clk 0:00:49]}  cxb5 {[%clk 0:02:06]} 32. Rc2 {[%clk 0:00:19]}  b4 {[%clk 0:02:04]} 33. Bd4 {[%clk 0:00:19]}  Nxd4 {[%clk 0:01:59]} 34. Kxd4 {[%clk 0:00:18]}  Rxc3 {[%clk 0:01:59]} 35. Rxc3 {[%clk 0:00:17]}  bxc3 {[%clk 0:02:00]} 36. Kxc3 {[%clk 0:00:16]}  Ke7 {[%clk 0:02:00]} 0-1

[Event "January 9 Early 2024"]
[Site "https://www.chess.com"]
[Date "2024.01.11"]
[Round "6"]
[White "Smirnov, Timofey"]
[Black "Blokhin, Sofia"]
[Result "0-1"]
[Board "47"]
[TimeControl "180+1"]
[WhiteFideId "24176427"]
[BlackFideId "4508190"]
[WhiteElo "2001"]
[BlackElo "2288"]
[WhiteTeam "RUS"]
[BlackTeam "EST"]
[WhiteClock "0:00:58"]
[BlackClock "0:00:47"]

1. d4 {[%clk 0:03:00]}  f5 {[%clk 0:02:57]} 2. h3 {[%clk 0:03:00]}  Nf6 {[%clk 0:02:55]} 3. g4 {[%clk 0:03:00]}  fxg4 {[%clk 0:02:52]} 4. hxg4 {[%clk 0:03:01]}  d5 {[%clk 0:02:49]} 5. g5 {[%clk 0:02:48]}  Ne4 {[%clk 0:02:44]} 6. Qd3 {[%clk 0:02:47]}  g6 {[%clk 0:02:29]} 7. f3 {[%clk 0:02:34]}  Ng3 {[%clk 0:02:22]} 8. Rxh7 {[%clk 0:02:34]}  Rxh7 {[%clk 0:02:19]} 9. Qxg6+ {[%clk 0:02:29]}  Rf7 {[%clk 0:02:18]} 10. Bf4 {[%clk 0:02:07]}  Bf5 {[%clk 0:02:09]} 11. Qxf7+ {[%clk 0:01:36]}  Kxf7 {[%clk 0:02:06]} 12. Bxg3 {[%clk 0:01:36]}  e6 {[%clk 0:01:59]} 13. f4 {[%clk 0:01:32]}  Bxc2 {[%clk 0:01:54]} 14. Bh4 {[%clk 0:01:31]}  Bg6 {[%clk 0:01:45]} 15. Nf3 {[%clk 0:01:30]}  Bg7 {[%clk 0:01:41]} 16. Ne5+ {[%clk 0:01:20]}  Bxe5 {[%clk 0:01:39]} 17. fxe5 {[%clk 0:01:21]}  Qh8 {[%clk 0:01:38]} 18. Bf2 {[%clk 0:01:12]}  Bxb1 {[%clk 0:01:26]} 19. Rxb1 {[%clk 0:01:12]}  Nc6 {[%clk 0:01:24]} 20. Rc1 {[%clk 0:01:11]}  Qh5 {[%clk 0:01:19]} 21. Be3 {[%clk 0:01:08]}  Qh4+ {[%clk 0:01:16]} 22. Kd2 {[%clk 0:01:08]}  Rc8 {[%clk 0:01:07]} 23. Bg2 {[%clk 0:01:07]}  Qh2 {[%clk 0:00:52]} 24. Bf3 {[%clk 0:01:00]}  Rh8 {[%clk 0:00:48]} 25. Rh1 {[%clk 0:00:58]}  Qxh1 {[%clk 0:00:47]} 26. Bxh1 {[%clk 0:00:58]}  Rxh1 {[%clk 0:00:47]} 0-1

[Event "January 9 Early 2024"]
[Site "https://www.chess.com"]
[Date "2024.01.11"]
[Round "6"]
[White "Mendez Fortes, Eduardo Jesus"]
[Black "Osinovsky, Stepan"]
[Result "1-0"]
[Board "50"]
[TimeControl "180+1"]
[WhiteFideId "3502376"]
[BlackFideId "4157354"]
[WhiteElo "2541"]
[BlackElo "2399"]
[WhiteTeam "CUB"]
[BlackTeam "RUS"]
[WhiteClock "0:01:37"]
[BlackClock "0:00:07"]

1. e4 {[%clk 0:02:55]}  e5 {[%clk 0:02:59]} 2. Nf3 {[%clk 0:02:51]}  Nc6 {[%clk 0:03:00]} 3. Bb5 {[%clk 0:02:50]}  a6 {[%clk 0:02:59]} 4. Ba4 {[%clk 0:02:49]}  Nf6 {[%clk 0:02:59]} 5. O-O {[%clk 0:02:47]}  Be7 {[%clk 0:02:58]} 6. Re1 {[%clk 0:02:47]}  b5 {[%clk 0:02:59]} 7. Bb3 {[%clk 0:02:46]}  O-O {[%clk 0:02:59]} 8. c3 {[%clk 0:02:46]}  d5 {[%clk 0:02:59]} 9. exd5 {[%clk 0:02:47]}  Nxd5 {[%clk 0:03:00]} 10. Nxe5 {[%clk 0:02:48]}  Nxe5 {[%clk 0:03:01]} 11. Rxe5 {[%clk 0:02:48]}  c6 {[%clk 0:03:01]} 12. d4 {[%clk 0:02:48]}  Bd6 {[%clk 0:03:02]} 13. Re1 {[%clk 0:02:48]}  Qh4 {[%clk 0:03:02]} 14. g3 {[%clk 0:02:47]}  Qh3 {[%clk 0:03:02]} 15. Re4 {[%clk 0:02:47]}  g5 {[%clk 0:03:02]} 16. Qe2 {[%clk 0:02:42]}  f5 {[%clk 0:02:49]} 17. Re5 {[%clk 0:02:41]}  Bxe5 {[%clk 0:01:58]} 18. Qxe5 {[%clk 0:02:42]}  Bd7 {[%clk 0:01:56]} 19. Bxd5+ {[%clk 0:02:36]}  cxd5 {[%clk 0:01:55]} 20. Qxd5+ {[%clk 0:02:35]}  Kh8 {[%clk 0:01:48]} 21. Bxg5 {[%clk 0:02:12]}  f4 {[%clk 0:01:10]} 22. Bxf4 {[%clk 0:01:58]}  Rxf4 {[%clk 0:00:19]} 23. Qxa8+ {[%clk 0:01:56]}  Bc8 {[%clk 0:00:18]} 24. Nd2 {[%clk 0:01:51]}  Rf8 {[%clk 0:00:15]} 25. Qe4 {[%clk 0:01:50]}  Bf5 {[%clk 0:00:13]} 26. Qe5+ {[%clk 0:01:49]}  Kg8 {[%clk 0:00:13]} 27. Re1 {[%clk 0:01:48]}  Qh6 {[%clk 0:00:11]} 28. Nf3 {[%clk 0:01:44]}  Bc8 {[%clk 0:00:09]} 29. Nh4 {[%clk 0:01:43]}  Qc6 {[%clk 0:00:08]} 30. Qg5+ {[%clk 0:01:39]}  Kh8 {[%clk 0:00:07]} 31. Re7 {[%clk 0:01:37]} 1-0

[Event "January 9 Early 2024"]
[Site "https://www.chess.com"]
[Date "2024.01.11"]
[Round "6"]
[White "Kraus, Tomas"]
[Black "Modric, Nesa"]
[Result "1-0"]
[Board "51"]
[TimeControl "180+1"]
[WhiteFideId "331708"]
[BlackFideId "922579"]
[WhiteElo "2348"]
[BlackElo "2203"]
[WhiteTeam "CZE"]
[BlackTeam "SRB"]
[WhiteClock "0:00:54"]
[BlackClock "0:00:15"]

1. e4 {[%clk 0:03:00]}  c6 {[%clk 0:02:59]} 2. d4 {[%clk 0:02:58]}  d5 {[%clk 0:02:58]} 3. f3 {[%clk 0:02:59]}  dxe4 {[%clk 0:02:54]} 4. fxe4 {[%clk 0:02:59]}  e5 {[%clk 0:02:53]} 5. Nf3 {[%clk 0:02:58]}  exd4 {[%clk 0:02:51]} 6. Bc4 {[%clk 0:02:58]}  Bc5 {[%clk 0:02:34]} 7. O-O {[%clk 0:02:51]}  Nf6 {[%clk 0:02:23]} 8. Bg5 {[%clk 0:02:24]}  d3+ {[%clk 0:02:08]} 9. Kh1 {[%clk 0:02:24]}  dxc2 {[%clk 0:02:08]} 10. Qxc2 {[%clk 0:02:13]}  Qb6 {[%clk 0:01:52]} 11. Nc3 {[%clk 0:01:46]}  Be7 {[%clk 0:01:46]} 12. e5 {[%clk 0:01:37]}  Ng8 {[%clk 0:01:29]} 13. Bxe7 {[%clk 0:01:21]}  Nxe7 {[%clk 0:01:29]} 14. Ng5 {[%clk 0:01:19]}  Be6 {[%clk 0:00:25]} 15. Bxe6 {[%clk 0:01:05]}  fxe6 {[%clk 0:00:24]} 16. Nxe6 {[%clk 0:01:06]}  Rg8 {[%clk 0:00:22]} 17. Qxh7 {[%clk 0:00:59]}  Nd7 {[%clk 0:00:19]} 18. Nxg7+ {[%clk 0:00:58]}  Kd8 {[%clk 0:00:15]} 19. Ne6+ {[%clk 0:00:57]}  Kc8 {[%clk 0:00:15]} 20. Qxe7 {[%clk 0:00:54]} 1-0

[Event "January 9 Early 2024"]
[Site "https://www.chess.com"]
[Date "2024.01.11"]
[Round "6"]
[White "Huschenbeth, Niclas"]
[Black "Rose, Felix"]
[Result "1-0"]
[Board "52"]
[TimeControl "180+1"]
[WhiteFideId "24604747"]
[BlackFideId "5105722"]
[WhiteElo "2477"]
[BlackElo "2249"]
[WhiteTeam "GER"]
[BlackTeam "MEX"]
[WhiteClock "0:01:18"]
[BlackClock "0:00:07"]

1. e4 {[%clk 0:03:00]}  e5 {[%clk 0:02:59]} 2. Nf3 {[%clk 0:03:00]}  Nc6 {[%clk 0:02:59]} 3. Bc4 {[%clk 0:02:59]}  Nf6 {[%clk 0:02:59]} 4. d4 {[%clk 0:03:00]}  exd4 {[%clk 0:02:59]} 5. e5 {[%clk 0:03:00]}  d5 {[%clk 0:02:58]} 6. Bb5 {[%clk 0:03:01]}  Ne4 {[%clk 0:02:58]} 7. Nxd4 {[%clk 0:03:01]}  Bc5 {[%clk 0:02:58]} 8. Be3 {[%clk 0:02:57]}  O-O {[%clk 0:02:58]} 9. Nxc6 {[%clk 0:02:57]}  bxc6 {[%clk 0:02:58]} 10. Bxc5 {[%clk 0:02:57]}  Nxc5 {[%clk 0:02:55]} 11. Bxc6 {[%clk 0:02:58]}  Rb8 {[%clk 0:02:47]} 12. Qxd5 {[%clk 0:02:58]}  Qe7 {[%clk 0:02:36]} 13. O-O {[%clk 0:02:57]}  Rxb2 {[%clk 0:02:28]} 14. Nc3 {[%clk 0:02:57]}  Rxc2 {[%clk 0:02:04]} 15. Qd4 {[%clk 0:02:57]}  Bf5 {[%clk 0:01:41]} 16. Nd5 {[%clk 0:02:49]}  Qg5 {[%clk 0:01:04]} 17. h4 {[%clk 0:02:24]}  Ne6 {[%clk 0:00:24]} 18. Qb4 {[%clk 0:02:21]}  Qg4 {[%clk 0:00:09]} 19. Qxg4 {[%clk 0:01:38]}  Bxg4 {[%clk 0:00:09]} 20. Rfc1 {[%clk 0:01:39]}  Rxc1+ {[%clk 0:00:09]} 21. Rxc1 {[%clk 0:01:38]}  h5 {[%clk 0:00:07]} 22. f3 {[%clk 0:01:18]} 1-0

[Event "January 9 Early 2024"]
[Site "https://www.chess.com"]
[Date "2024.01.11"]
[Round "6"]
[White "Banzea, Alexandru-Bogdan"]
[Black "Vokhidov, Shamsiddin"]
[Result "0-1"]
[Board "53"]
[TimeControl "180+1"]
[WhiteFideId "1232622"]
[BlackFideId "14204223"]
[WhiteElo "2711"]
[BlackElo "2998"]
[WhiteTeam "ROU"]
[BlackTeam "UZB"]
[WhiteClock "0:00:15"]
[BlackClock "0:01:32"]

1. d4 {[%clk 0:03:00]}  Nf6 {[%clk 0:02:59]} 2. Nc3 {[%clk 0:03:00]}  d5 {[%clk 0:03:00]} 3. Bf4 {[%clk 0:03:00]}  c5 {[%clk 0:03:00]} 4. e3 {[%clk 0:03:01]}  cxd4 {[%clk 0:03:00]} 5. exd4 {[%clk 0:03:02]}  a6 {[%clk 0:03:00]} 6. Bd3 {[%clk 0:03:01]}  Nc6 {[%clk 0:03:00]} 7. Nge2 {[%clk 0:03:01]}  Bg4 {[%clk 0:03:00]} 8. f3 {[%clk 0:03:02]}  Bh5 {[%clk 0:03:01]} 9. g4 {[%clk 0:03:03]}  Bg6 {[%clk 0:03:01]} 10. h4 {[%clk 0:03:03]}  e6 {[%clk 0:02:59]} 11. h5 {[%clk 0:03:04]}  Bxd3 {[%clk 0:02:59]} 12. Qxd3 {[%clk 0:03:04]}  Rc8 {[%clk 0:03:00]} 13. O-O-O {[%clk 0:03:04]}  Qa5 {[%clk 0:02:59]} 14. Kb1 {[%clk 0:03:03]}  Nd7 {[%clk 0:03:00]} 15. Nc1 {[%clk 0:03:04]}  Nb4 {[%clk 0:02:53]} 16. Qe3 {[%clk 0:02:55]}  Be7 {[%clk 0:02:51]} 17. g5 {[%clk 0:02:41]}  Qb6 {[%clk 0:02:40]} 18. g6 {[%clk 0:02:33]}  f6 {[%clk 0:02:36]} 19. Rhe1 {[%clk 0:02:21]}  hxg6 {[%clk 0:02:16]} 20. hxg6 {[%clk 0:02:22]}  Nf8 {[%clk 0:02:06]} 21. a3 {[%clk 0:01:58]}  Nc6 {[%clk 0:02:06]} 22. Nxd5 {[%clk 0:01:59]}  exd5 {[%clk 0:02:05]} 23. Bd6 {[%clk 0:01:58]}  Nxg6 {[%clk 0:02:04]} 24. Nb3 {[%clk 0:01:35]}  Qd8 {[%clk 0:01:50]} 25. Qe6 {[%clk 0:01:21]}  Qd7 {[%clk 0:01:37]} 26. Qxd5 {[%clk 0:00:58]}  Nf4 {[%clk 0:01:37]} 27. Qc5 {[%clk 0:00:38]}  b6 {[%clk 0:01:37]} 28. Qxb6 {[%clk 0:00:25]}  Qxd6 {[%clk 0:01:36]} 29. d5 {[%clk 0:00:26]}  Ne5 {[%clk 0:01:35]} 30. Qb7 {[%clk 0:00:20]}  Rb8 {[%clk 0:01:32]} 31. Qa7 {[%clk 0:00:15]}  Qb6 {[%clk 0:01:32]} 0-1

[Event "January 9 Early 2024"]
[Site "https://www.chess.com"]
[Date "2024.01.11"]
[Round "6"]
[White "Poddubnyi, Viktor"]
[Black "Golubev, Mikhail"]
[Result "0-1"]
[Board "54"]
[TimeControl "180+1"]
[WhiteFideId "4141989"]
[BlackFideId "14100983"]
[WhiteElo "2426"]
[BlackElo "2620"]
[WhiteTeam "RUS"]
[BlackTeam "UKR"]
[WhiteClock "0:00:35"]
[BlackClock "0:00:58"]

1. e4 {[%clk 0:03:00]}  c5 {[%clk 0:02:59]} 2. Nf3 {[%clk 0:03:00]}  Nc6 {[%clk 0:02:59]} 3. d4 {[%clk 0:03:00]}  cxd4 {[%clk 0:02:59]} 4. Nxd4 {[%clk 0:03:01]}  Nf6 {[%clk 0:02:59]} 5. Nc3 {[%clk 0:03:02]}  d6 {[%clk 0:03:00]} 6. Bc4 {[%clk 0:03:01]}  e6 {[%clk 0:02:59]} 7. Bb3 {[%clk 0:03:00]}  a6 {[%clk 0:02:58]} 8. Be3 {[%clk 0:03:01]}  Qc7 {[%clk 0:02:58]} 9. Qe2 {[%clk 0:03:01]}  Na5 {[%clk 0:02:57]} 10. O-O-O {[%clk 0:02:59]}  b5 {[%clk 0:02:56]} 11. Kb1 {[%clk 0:02:33]}  Bb7 {[%clk 0:02:27]} 12. f3 {[%clk 0:02:28]}  Nd7 {[%clk 0:02:19]} 13. Bxe6 {[%clk 0:02:10]}  fxe6 {[%clk 0:02:18]} 14. Nxe6 {[%clk 0:02:11]}  Qc4 {[%clk 0:02:14]} 15. Qxc4 {[%clk 0:01:15]}  Nxc4 {[%clk 0:02:14]} 16. Bd4 {[%clk 0:01:16]}  Kf7 {[%clk 0:02:06]} 17. Nc7 {[%clk 0:01:11]}  Rc8 {[%clk 0:02:06]} 18. N7d5 {[%clk 0:01:11]}  Rg8 {[%clk 0:01:50]} 19. h4 {[%clk 0:01:10]}  Be7 {[%clk 0:01:41]} 20. h5 {[%clk 0:01:08]}  Bf6 {[%clk 0:01:32]} 21. Nxf6 {[%clk 0:01:03]}  gxf6 {[%clk 0:01:32]} 22. g4 {[%clk 0:00:54]}  Nde5 {[%clk 0:01:32]} 23. Rhf1 {[%clk 0:00:50]}  Rgd8 {[%clk 0:01:08]} 24. b3 {[%clk 0:00:44]}  Na3+ {[%clk 0:01:06]} 25. Kb2 {[%clk 0:00:44]}  b4 {[%clk 0:01:06]} 26. Rd2 {[%clk 0:00:35]}  bxc3+ {[%clk 0:00:58]} 0-1